[Event "Early-Titled-Tuesday-Blitz-March-05-2024"]
[Site "Chess.com"]
[Date "2024.03.05"]
[Round "6"]
[White "Kobalia"]
[Black "lucasran"]
[Result "1-0"]
[WhiteElo "2800"]
[BlackElo "2609"]
[TimeControl "180+1"]
[EndTime "9:07:40 PST"]
[Termination "Kobalia won by checkmate"]

1. e4 {[%clk 0:03:00.9]} 1... c6 {[%clk 0:02:59.5]} 2. d4 {[%clk 0:03:00.2]}
2... d5 {[%clk 0:03:00.4]} 3. e5 {[%clk 0:03:00.8]} 3... Bf5 {[%clk 0:03:01]} 4.
Nf3 {[%clk 0:03:01.2]} 4... e6 {[%clk 0:03:01]} 5. Be2 {[%clk 0:03:01.8]} 5...
c5 {[%clk 0:03:01.4]} 6. c3 {[%clk 0:03:00.7]} 6... Nc6 {[%clk 0:03:01.3]} 7.
O-O {[%clk 0:03:00.9]} 7... cxd4 {[%clk 0:02:55.6]} 8. Nxd4 {[%clk 0:03:00.2]}
8... Nxd4 {[%clk 0:02:55]} 9. cxd4 {[%clk 0:03:00.5]} 9... Ne7 {[%clk
0:02:55.7]} 10. Nc3 {[%clk 0:03:00.6]} 10... Nc6 {[%clk 0:02:56.2]} 11. g4
{[%clk 0:03:00.5]} 11... Bg6 {[%clk 0:02:55.3]} 12. f4 {[%clk 0:03:00.8]} 12...
f5 {[%clk 0:02:30.5]} 13. exf6 {[%clk 0:03:00.4]} 13... Qxf6 {[%clk 0:02:27.7]}
14. f5 {[%clk 0:03:00.7]} 14... exf5 {[%clk 0:02:25.8]} 15. Nxd5 {[%clk
0:02:51.8]} 15... Qxd4+ {[%clk 0:02:02.3]} 16. Be3 {[%clk 0:02:50.4]} 16... Qxd1
{[%clk 0:01:58.3]} 17. Raxd1 {[%clk 0:02:51.3]} 17... O-O-O {[%clk 0:01:54.6]}
18. gxf5 {[%clk 0:02:50.6]} 18... Bf7 {[%clk 0:01:54]} 19. Bf3 {[%clk
0:02:49.8]} 19... Bd6 {[%clk 0:01:42.4]} 20. Bg5 {[%clk 0:02:44.6]} 20... Rd7
{[%clk 0:01:42.7]} 21. f6 {[%clk 0:02:43.8]} 21... Bxd5 {[%clk 0:01:22]} 22.
Rxd5 {[%clk 0:02:32.2]} 22... gxf6 {[%clk 0:01:22.1]} 23. Bg4 {[%clk 0:02:21.4]}
23... Rg8 {[%clk 0:01:18.8]} 24. Bxd7+ {[%clk 0:02:10]} 24... Kxd7 {[%clk
0:01:18.9]} 25. Rxf6 {[%clk 0:02:09.3]} 25... Rxg5+ {[%clk 0:00:52.8]} 26. Rxg5
{[%clk 0:02:07.1]} 26... Be7 {[%clk 0:00:53.1]} 27. Rg7 {[%clk 0:02:06.1]} 27...
Ke8 {[%clk 0:00:50.8]} 28. Rh6 {[%clk 0:02:01.2]} 28... Bf8 {[%clk 0:00:50.6]}
29. Re6+ {[%clk 0:02:00.9]} 29... Ne7 {[%clk 0:00:44.6]} 30. Rxh7 {[%clk
0:01:56.8]} 30... Kd7 {[%clk 0:00:43.9]} 31. Rexe7+ {[%clk 0:01:56.6]} 31...
Bxe7 {[%clk 0:00:44.1]} 32. Kf2 {[%clk 0:01:56.4]} 32... Ke6 {[%clk 0:00:44.2]}
33. Kf3 {[%clk 0:01:54.1]} 33... b5 {[%clk 0:00:22.2]} 34. Rxe7+ {[%clk
0:01:49.9]} 34... Kxe7 {[%clk 0:00:23.1]} 35. Ke4 {[%clk 0:01:50.1]} 35... Ke6
{[%clk 0:00:23.5]} 36. Kd4 {[%clk 0:01:50.3]} 36... Kd6 {[%clk 0:00:23.2]} 37.
b4 {[%clk 0:01:50.1]} 37... a5 {[%clk 0:00:24.1]} 38. bxa5 {[%clk 0:01:50]}
38... Kc6 {[%clk 0:00:23.6]} 39. h4 {[%clk 0:01:49.8]} 39... Kb7 {[%clk
0:00:24.4]} 40. h5 {[%clk 0:01:50]} 40... Ka6 {[%clk 0:00:25.3]} 41. h6 {[%clk
0:01:50.3]} 41... Kxa5 {[%clk 0:00:26.2]} 42. h7 {[%clk 0:01:50.7]} 42... Kb4
{[%clk 0:00:27.1]} 43. h8=Q {[%clk 0:01:51.1]} 43... Ka3 {[%clk 0:00:28]} 44.
Qa8+ {[%clk 0:01:50.9]} 44... Kb2 {[%clk 0:00:28.2]} 45. Qa5 {[%clk 0:01:50.6]}
45... Ka1 {[%clk 0:00:28.4]} 46. Kc3 {[%clk 0:01:48.3]} 46... b4+ {[%clk
0:00:28.4]} 47. Qxb4 {[%clk 0:01:47.3]} 47... Kxa2 {[%clk 0:00:28.9]} 48. Qb2#
{[%clk 0:01:48]} 1-0

[Event "Early-Titled-Tuesday-Blitz-March-05-2024"]
[Site "Chess.com"]
[Date "2024.03.05"]
[Round "6"]
[White "ChristianArca"]
[Black "StankovicIvan"]
[Result "1-0"]
[WhiteElo "2700"]
[BlackElo "2523"]
[TimeControl "180+1"]
[EndTime "9:07:40 PST"]
[Termination "ChristianArca won by resignation"]

1. d4 {[%clk 0:02:54.4]} 1... d5 {[%clk 0:02:58.9]} 2. Nf3 {[%clk 0:02:54.2]}
2... Nf6 {[%clk 0:02:58.7]} 3. g3 {[%clk 0:02:54.4]} 3... g6 {[%clk 0:02:57.9]}
4. Bg2 {[%clk 0:02:54.7]} 4... Bg7 {[%clk 0:02:58.8]} 5. O-O {[%clk 0:02:55.6]}
5... O-O {[%clk 0:02:59.2]} 6. c4 {[%clk 0:02:56.5]} 6... c6 {[%clk 0:02:44]} 7.
Qb3 {[%clk 0:02:54.9]} 7... a6 {[%clk 0:02:39.1]} 8. Nc3 {[%clk 0:02:54.5]} 8...
Ne4 {[%clk 0:02:25.3]} 9. cxd5 {[%clk 0:02:49.8]} 9... Nxc3 {[%clk 0:02:23.2]}
10. bxc3 {[%clk 0:02:50.1]} 10... Qxd5 {[%clk 0:02:16.2]} 11. c4 {[%clk
0:02:49.8]} 11... Qd8 {[%clk 0:02:14.4]} 12. Bb2 {[%clk 0:02:49.7]} 12... Ra7
{[%clk 0:02:07.6]} 13. e3 {[%clk 0:02:46.7]} 13... b5 {[%clk 0:02:06]} 14. Qc2
{[%clk 0:02:37.7]} 14... Nd7 {[%clk 0:02:01.6]} 15. Rfd1 {[%clk 0:02:09.7]}
15... Qa5 {[%clk 0:01:55.7]} 16. Nd2 {[%clk 0:02:02]} 16... c5 {[%clk
0:01:47.4]} 17. Nb3 {[%clk 0:01:59.8]} 17... Qa4 {[%clk 0:01:42.7]} 18. dxc5
{[%clk 0:01:58]} 18... Bxb2 {[%clk 0:01:35.4]} 19. Qxb2 {[%clk 0:01:56]} 19...
bxc4 {[%clk 0:01:34.9]} 20. Rd4 {[%clk 0:01:55.6]} 20... e5 {[%clk 0:01:20.7]}
21. Rh4 {[%clk 0:01:52.7]} 21... Rc7 {[%clk 0:01:13]} 22. Qc3 {[%clk 0:01:48.5]}
22... Bb7 {[%clk 0:00:25.8]} 23. Rxc4 {[%clk 0:01:48.2]} 23... Qa3 {[%clk
0:00:26.3]} 24. c6 {[%clk 0:01:46.8]} 24... Nb6 {[%clk 0:00:26.3]} 25. Rc5
{[%clk 0:01:23.6]} 25... Na4 {[%clk 0:00:24.2]} 26. Qa5 {[%clk 0:01:24]} 26...
Ba8 {[%clk 0:00:16.2]} 27. Rc4 {[%clk 0:01:17.5]} 27... Qb2 {[%clk 0:00:13.1]}
28. Qxc7 {[%clk 0:01:14.7]} 1-0

[Event "Early-Titled-Tuesday-Blitz-March-05-2024"]
[Site "Chess.com"]
[Date "2024.03.05"]
[Round "6"]
[White "Chessdreamer2020"]
[Black "Chernov_Alexander_A"]
[Result "1-0"]
[WhiteElo "2520"]
[BlackElo "2344"]
[TimeControl "180+1"]
[EndTime "9:07:48 PST"]
[Termination "Chessdreamer2020 won on time"]

1. e4 {[%clk 0:02:58.9]} 1... d6 {[%clk 0:02:59.5]} 2. d4 {[%clk 0:02:58.1]}
2... Nf6 {[%clk 0:02:59.5]} 3. Nc3 {[%clk 0:02:58.4]} 3... Nbd7 {[%clk
0:02:59.5]} 4. h3 {[%clk 0:02:58.6]} 4... e5 {[%clk 0:02:59.5]} 5. Nge2 {[%clk
0:02:59.2]} 5... c6 {[%clk 0:02:58.9]} 6. g4 {[%clk 0:02:59.5]} 6... exd4 {[%clk
0:02:58.5]} 7. Nxd4 {[%clk 0:02:59.1]} 7... Ne5 {[%clk 0:02:58.4]} 8. Bg2 {[%clk
0:02:58.8]} 8... Be7 {[%clk 0:02:51.4]} 9. O-O {[%clk 0:02:58.7]} 9... O-O
{[%clk 0:02:50.7]} 10. f4 {[%clk 0:02:59]} 10... Ng6 {[%clk 0:02:50]} 11. Nde2
{[%clk 0:02:56.2]} 11... d5 {[%clk 0:02:25.3]} 12. e5 {[%clk 0:02:56]} 12...
Nxg4 {[%clk 0:02:23.5]} 13. hxg4 {[%clk 0:02:54.6]} 13... Bxg4 {[%clk
0:02:23.2]} 14. Be3 {[%clk 0:02:49.9]} 14... f6 {[%clk 0:01:55.3]} 15. exf6
{[%clk 0:02:42.3]} 15... Bxf6 {[%clk 0:01:55.1]} 16. Qd2 {[%clk 0:02:38.1]}
16... Nh4 {[%clk 0:01:33.1]} 17. Bh1 {[%clk 0:02:34.4]} 17... Re8 {[%clk
0:01:29.4]} 18. Rae1 {[%clk 0:02:32.4]} 18... Bh3 {[%clk 0:01:12.9]} 19. Rf2
{[%clk 0:02:30.4]} 19... Qe7 {[%clk 0:01:09.5]} 20. Bd4 {[%clk 0:02:20.6]} 20...
Nf5 {[%clk 0:00:50.4]} 21. Bxf6 {[%clk 0:02:07.4]} 21... Qxf6 {[%clk 0:00:48.4]}
22. Bg2 {[%clk 0:02:02.1]} 22... Bxg2 {[%clk 0:00:27.9]} 23. Rxg2 {[%clk
0:02:01.9]} 23... Nh4 {[%clk 0:00:26.6]} 24. Rg3 {[%clk 0:01:59.5]} 24... Nf5
{[%clk 0:00:14.1]} 25. Rg5 {[%clk 0:01:55.3]} 25... Nh4 {[%clk 0:00:09.9]} 26.
Kf2 {[%clk 0:01:51.2]} 26... h6 {[%clk 0:00:09.1]} 27. Rg4 {[%clk 0:01:49.2]}
27... Nf5 {[%clk 0:00:09]} 28. Reg1 {[%clk 0:01:46.3]} 28... Kh8 {[%clk
0:00:05.5]} 29. Ng3 {[%clk 0:01:42.5]} 29... Ne3 {[%clk 0:00:03.3]} 30. Nge2
{[%clk 0:01:32.7]} 30... Nxg4+ {[%clk 0:00:03]} 31. Rxg4 {[%clk 0:01:33.6]}
31... Qf5 {[%clk 0:00:03]} 32. Rg3 {[%clk 0:01:32]} 1-0

[Event "Early-Titled-Tuesday-Blitz-March-05-2024"]
[Site "Chess.com"]
[Date "2024.03.05"]
[Round "6"]
[White "wild3000"]
[Black "mfschulz"]
[Result "1-0"]
[WhiteElo "2489"]
[BlackElo "2265"]
[TimeControl "180+1"]
[EndTime "9:07:49 PST"]
[Termination "wild3000 won by resignation"]

1. d4 {[%clk 0:02:18]} 1... Nf6 {[%clk 0:02:58.5]} 2. Nf3 {[%clk 0:02:18.9]}
2... c5 {[%clk 0:02:57.4]} 3. e3 {[%clk 0:02:18.7]} 3... g6 {[%clk 0:02:56.8]}
4. c4 {[%clk 0:02:18.3]} 4... Bg7 {[%clk 0:02:56.5]} 5. Nc3 {[%clk 0:02:18.7]}
5... O-O {[%clk 0:02:56.1]} 6. Be2 {[%clk 0:02:18.3]} 6... cxd4 {[%clk
0:02:56.2]} 7. Nxd4 {[%clk 0:02:17.6]} 7... d5 {[%clk 0:02:55]} 8. O-O {[%clk
0:02:16.4]} 8... Nc6 {[%clk 0:02:55]} 9. b3 {[%clk 0:02:12.9]} 9... e5 {[%clk
0:02:54.8]} 10. Nxc6 {[%clk 0:02:11.3]} 10... bxc6 {[%clk 0:02:54.6]} 11. cxd5
{[%clk 0:02:09.7]} 11... cxd5 {[%clk 0:02:52.5]} 12. Bb2 {[%clk 0:02:05.8]}
12... Re8 {[%clk 0:02:50.2]} 13. Na4 {[%clk 0:02:05.6]} 13... Qa5 {[%clk
0:02:38.3]} 14. Rc1 {[%clk 0:02:03.9]} 14... Bf5 {[%clk 0:02:28.4]} 15. Rc5
{[%clk 0:02:03.1]} 15... Qb4 {[%clk 0:02:23.5]} 16. a3 {[%clk 0:01:54.7]} 16...
Qh4 {[%clk 0:02:21]} 17. Rc7 {[%clk 0:01:35]} 17... Rad8 {[%clk 0:02:05.8]} 18.
Rxa7 {[%clk 0:01:33.4]} 18... Ng4 {[%clk 0:02:01.9]} 19. Bxg4 {[%clk 0:01:29.8]}
19... Bxg4 {[%clk 0:02:02]} 20. Qc1 {[%clk 0:01:25.5]} 20... Qg5 {[%clk
0:01:52.9]} 21. f3 {[%clk 0:01:12.7]} 21... Bh3 {[%clk 0:01:48.8]} 22. Rf2
{[%clk 0:01:12.8]} 22... d4 {[%clk 0:01:44.4]} 23. e4 {[%clk 0:01:02.2]} 23...
Qxc1+ {[%clk 0:01:30.8]} 24. Bxc1 {[%clk 0:01:03.1]} 24... Be6 {[%clk
0:01:30.6]} 25. b4 {[%clk 0:01:00.2]} 25... Ra8 {[%clk 0:01:21.7]} 26. Rxa8
{[%clk 0:00:58.3]} 26... Rxa8 {[%clk 0:01:21.8]} 27. Nc5 {[%clk 0:00:58.9]}
27... Bc4 {[%clk 0:01:10.9]} 28. Rc2 {[%clk 0:00:54.5]} 28... Bb5 {[%clk
0:01:10.3]} 29. a4 {[%clk 0:00:42.6]} 29... Bxa4 {[%clk 0:01:07.3]} 30. Nxa4
{[%clk 0:00:42.6]} 30... Rxa4 {[%clk 0:01:05.8]} 31. Rc8+ {[%clk 0:00:42.5]}
31... Bf8 {[%clk 0:01:05.9]} 32. Bh6 {[%clk 0:00:42.8]} 32... Ra1+ {[%clk
0:00:52.4]} 33. Kf2 {[%clk 0:00:42.4]} 33... Ra2+ {[%clk 0:00:52.6]} 34. Kg3
{[%clk 0:00:42.7]} 1-0

[Event "Early-Titled-Tuesday-Blitz-March-05-2024"]
[Site "Chess.com"]
[Date "2024.03.05"]
[Round "6"]
[White "Muracle"]
[Black "Goryachkina"]
[Result "0-1"]
[WhiteElo "2516"]
[BlackElo "2687"]
[TimeControl "180+1"]
[EndTime "9:07:55 PST"]
[Termination "Goryachkina won by checkmate"]

1. Nf3 {[%clk 0:02:53.8]} 1... c5 {[%clk 0:02:58.5]} 2. b3 {[%clk 0:02:52.3]}
2... Nc6 {[%clk 0:02:57.5]} 3. Bb2 {[%clk 0:02:50.5]} 3... d6 {[%clk 0:02:57.4]}
4. g3 {[%clk 0:02:49.1]} 4... e5 {[%clk 0:02:53.7]} 5. d3 {[%clk 0:02:41.6]}
5... g6 {[%clk 0:02:46.9]} 6. Bg2 {[%clk 0:02:39.8]} 6... Bg7 {[%clk 0:02:47.3]}
7. O-O {[%clk 0:02:40]} 7... Nge7 {[%clk 0:02:47.7]} 8. c4 {[%clk 0:02:38.8]}
8... O-O {[%clk 0:02:47.5]} 9. Nbd2 {[%clk 0:02:39.2]} 9... h6 {[%clk
0:02:44.5]} 10. Qc2 {[%clk 0:02:37.7]} 10... Be6 {[%clk 0:02:41.9]} 11. Rae1
{[%clk 0:02:32.5]} 11... Rc8 {[%clk 0:02:38.9]} 12. Qb1 {[%clk 0:02:29.8]} 12...
a6 {[%clk 0:02:32.8]} 13. e3 {[%clk 0:02:04.8]} 13... b5 {[%clk 0:02:31.7]} 14.
d4 {[%clk 0:01:43.3]} 14... bxc4 {[%clk 0:02:16.2]} 15. dxc5 {[%clk 0:01:36.2]}
15... cxb3 {[%clk 0:02:14.1]} 16. cxd6 {[%clk 0:01:28.6]} 16... bxa2 {[%clk
0:02:04.9]} 17. Qd3 {[%clk 0:01:14.6]} 17... Nd5 {[%clk 0:01:54.2]} 18. Ne4
{[%clk 0:01:08.7]} 18... Ndb4 {[%clk 0:01:45.7]} 19. Qd2 {[%clk 0:01:03.5]}
19... Bc4 {[%clk 0:01:37.5]} 20. Bh3 {[%clk 0:00:25.8]} 20... Bxf1 {[%clk
0:01:32]} 21. Bxc8 {[%clk 0:00:23.3]} 21... Bd3 {[%clk 0:01:22.7]} 22. Nc5
{[%clk 0:00:20.5]} 22... Qxc8 {[%clk 0:01:11.1]} 23. Nxd3 {[%clk 0:00:18.8]}
23... Nxd3 {[%clk 0:01:11.4]} 24. Qxd3 {[%clk 0:00:19.7]} 24... e4 {[%clk
0:01:11.5]} 25. Qc2 {[%clk 0:00:05.9]} 25... exf3 {[%clk 0:01:11.6]} 26. Bxg7
{[%clk 0:00:05.8]} 26... Qh3 {[%clk 0:01:08.5]} 27. Bxf8 {[%clk 0:00:01.3]}
27... Qg2# {[%clk 0:01:08.6]} 0-1

[Event "Early-Titled-Tuesday-Blitz-March-05-2024"]
[Site "Chess.com"]
[Date "2024.03.05"]
[Round "6"]
[White "chupitroko32"]
[Black "Mariia89"]
[Result "1-0"]
[WhiteElo "2403"]
[BlackElo "2262"]
[TimeControl "180+1"]
[EndTime "9:07:56 PST"]
[Termination "chupitroko32 won on time"]

1. e4 {[%clk 0:03:00.9]} 1... c6 {[%clk 0:02:59.7]} 2. Nf3 {[%clk 0:03:00.6]}
2... d5 {[%clk 0:03:00.6]} 3. exd5 {[%clk 0:03:01.1]} 3... cxd5 {[%clk
0:03:01.5]} 4. Ne5 {[%clk 0:03:01.8]} 4... Nf6 {[%clk 0:02:57.2]} 5. d4 {[%clk
0:03:02]} 5... Nc6 {[%clk 0:02:57.3]} 6. f4 {[%clk 0:03:02.2]} 6... Qb6 {[%clk
0:02:52.7]} 7. c3 {[%clk 0:03:02.4]} 7... Bf5 {[%clk 0:02:47.4]} 8. Bd3 {[%clk
0:03:02.5]} 8... Bxd3 {[%clk 0:02:47.1]} 9. Qxd3 {[%clk 0:03:03.4]} 9... e6
{[%clk 0:02:47.5]} 10. O-O {[%clk 0:02:52.2]} 10... g6 {[%clk 0:02:46.9]} 11.
Nd2 {[%clk 0:02:51.9]} 11... Bg7 {[%clk 0:02:47.1]} 12. Kh1 {[%clk 0:02:43.3]}
12... O-O {[%clk 0:02:47.2]} 13. b3 {[%clk 0:02:43.7]} 13... Rac8 {[%clk
0:02:46.1]} 14. Bb2 {[%clk 0:02:43.9]} 14... a6 {[%clk 0:02:39.9]} 15. Rae1
{[%clk 0:02:43.2]} 15... Qa5 {[%clk 0:02:19]} 16. a4 {[%clk 0:02:36.2]} 16...
Rfd8 {[%clk 0:01:54.1]} 17. g4 {[%clk 0:02:33.2]} 17... b5 {[%clk 0:01:50.1]}
18. axb5 {[%clk 0:02:32]} 18... axb5 {[%clk 0:01:46.5]} 19. f5 {[%clk 0:02:15]}
19... Nxe5 {[%clk 0:00:52.8]} 20. dxe5 {[%clk 0:02:11.5]} 20... Nxg4 {[%clk
0:00:52.8]} 21. fxe6 {[%clk 0:02:00.9]} 21... fxe6 {[%clk 0:00:50.8]} 22. Qg3
{[%clk 0:01:54.8]} 22... Nh6 {[%clk 0:00:44.9]} 23. Nf3 {[%clk 0:01:46.4]} 23...
Nf5 {[%clk 0:00:44.6]} 24. Qh3 {[%clk 0:01:44.7]} 24... Re8 {[%clk 0:00:17.1]}
25. Rg1 {[%clk 0:01:26.1]} 25... Qa2 {[%clk 0:00:11.4]} 26. Rg2 {[%clk
0:01:18.9]} 26... Qxb3 {[%clk 0:00:11.3]} 27. Ng5 {[%clk 0:01:19.2]} 27... h5
{[%clk 0:00:07.5]} 28. Nf3 {[%clk 0:01:13]} 28... Kh7 {[%clk 0:00:06.7]} 29.
Reg1 {[%clk 0:01:12.4]} 1-0

[Event "Early-Titled-Tuesday-Blitz-March-05-2024"]
[Site "Chess.com"]
[Date "2024.03.05"]
[Round "6"]
[White "NowInChess"]
[Black "Rosh1610"]
[Result "0-1"]
[WhiteElo "2248"]
[BlackElo "2422"]
[TimeControl "180+1"]
[EndTime "9:07:56 PST"]
[Termination "Rosh1610 won on time"]

1. e4 {[%clk 0:03:00.9]} 1... e5 {[%clk 0:02:53.1]} 2. Nf3 {[%clk 0:03:00.3]}
2... d6 {[%clk 0:02:53.5]} 3. d4 {[%clk 0:03:00.4]} 3... exd4 {[%clk 0:02:53.6]}
4. Nxd4 {[%clk 0:02:59.7]} 4... Nf6 {[%clk 0:02:54.2]} 5. Nc3 {[%clk 0:03:00]}
5... Be7 {[%clk 0:02:54.2]} 6. Qf3 {[%clk 0:02:50.1]} 6... O-O {[%clk
0:02:54.6]} 7. Nf5 {[%clk 0:02:48.7]} 7... Bxf5 {[%clk 0:02:54.1]} 8. exf5
{[%clk 0:02:47.2]} 8... Nc6 {[%clk 0:02:53.7]} 9. Be3 {[%clk 0:02:46.7]} 9...
Ne5 {[%clk 0:02:52.7]} 10. Qf4 {[%clk 0:02:33]} 10... c6 {[%clk 0:02:50.1]} 11.
Be2 {[%clk 0:02:28.6]} 11... b5 {[%clk 0:02:49.4]} 12. a3 {[%clk 0:02:01.6]}
12... a5 {[%clk 0:02:48.5]} 13. O-O {[%clk 0:02:00.6]} 13... Rb8 {[%clk
0:02:48]} 14. g4 {[%clk 0:01:45]} 14... b4 {[%clk 0:02:47.6]} 15. axb4 {[%clk
0:01:44.1]} 15... Rxb4 {[%clk 0:02:48.5]} 16. Bd4 {[%clk 0:01:29.4]} 16... c5
{[%clk 0:02:46.5]} 17. Bxe5 {[%clk 0:01:24.5]} 17... Rxf4 {[%clk 0:02:46.4]} 18.
Bxf4 {[%clk 0:01:25.4]} 18... h6 {[%clk 0:02:45.6]} 19. Rfd1 {[%clk 0:01:18.6]}
19... Qb8 {[%clk 0:02:44.9]} 20. b3 {[%clk 0:01:10.6]} 20... Qb4 {[%clk
0:02:39.7]} 21. Bd2 {[%clk 0:00:48.1]} 21... Qb7 {[%clk 0:02:39.3]} 22. Rxa5
{[%clk 0:00:32.7]} 22... Bd8 {[%clk 0:02:37.8]} 23. Ra4 {[%clk 0:00:29.1]} 23...
Bc7 {[%clk 0:02:37.3]} 24. Bf4 {[%clk 0:00:26.2]} 24... d5 {[%clk 0:02:30.3]}
25. Bxc7 {[%clk 0:00:25.2]} 25... Qxc7 {[%clk 0:02:31.2]} 26. Nxd5 {[%clk
0:00:25.1]} 26... Nxd5 {[%clk 0:02:31]} 27. Rxd5 {[%clk 0:00:26]} 27... Re8
{[%clk 0:02:28.7]} 28. Bd3 {[%clk 0:00:18.2]} 28... Qc6 {[%clk 0:02:24.3]} 29.
Re4 {[%clk 0:00:06.8]} 29... Ra8 {[%clk 0:02:16.4]} 30. c4 {[%clk 0:00:01.3]}
30... Ra1+ {[%clk 0:02:15.3]} 31. Kg2 {[%clk 0:00:01.3]} 31... Qf6 {[%clk
0:02:10.4]} 32. Kg3 {[%clk 0:00:01.3]} 32... Rg1+ {[%clk 0:02:04.8]} 33. Kf3
{[%clk 0:00:01.3]} 33... h5 {[%clk 0:02:00]} 34. Re8+ {[%clk 0:00:01.8]} 34...
Kh7 {[%clk 0:01:59.8]} 35. g5 {[%clk 0:00:02.1]} 35... Rxg5 {[%clk 0:01:58.7]}
36. Rdd8 {[%clk 0:00:01.9]} 36... Rxf5+ {[%clk 0:01:55.2]} 37. Bxf5+ {[%clk
0:00:02.8]} 37... Qxf5+ {[%clk 0:01:56.1]} 38. Ke3 {[%clk 0:00:02.3]} 38... Qg5+
{[%clk 0:01:55.6]} 39. Ke2 {[%clk 0:00:02.2]} 39... Qg4+ {[%clk 0:01:55.6]} 40.
Kf1 {[%clk 0:00:02.7]} 40... Qh3+ {[%clk 0:01:54.6]} 41. Kg1 {[%clk 0:00:03.3]}
41... Qxb3 {[%clk 0:01:54.8]} 42. Re5 {[%clk 0:00:02]} 42... Kg6 {[%clk
0:01:54.5]} 43. Re4 {[%clk 0:00:01.8]} 43... Qb1+ {[%clk 0:01:53.8]} 44. Kg2
{[%clk 0:00:02.4]} 44... Qxe4+ {[%clk 0:01:54]} 45. f3 {[%clk 0:00:03.1]} 45...
Qxc4 {[%clk 0:01:54.3]} 0-1

[Event "Early-Titled-Tuesday-Blitz-March-05-2024"]
[Site "Chess.com"]
[Date "2024.03.05"]
[Round "6"]
[White "ChessBrainiacOnTwitch"]
[Black "mortngabriel"]
[Result "1-0"]
[WhiteElo "2820"]
[BlackElo "2530"]
[TimeControl "180+1"]
[EndTime "9:07:57 PST"]
[Termination "ChessBrainiacOnTwitch won by resignation"]

1. e4 {[%clk 0:03:00.9]} 1... c5 {[%clk 0:02:59.9]} 2. Nf3 {[%clk 0:03:00.8]}
2... Nc6 {[%clk 0:02:59.9]} 3. d4 {[%clk 0:02:59.8]} 3... cxd4 {[%clk
0:03:00.8]} 4. Nxd4 {[%clk 0:03:00.5]} 4... g6 {[%clk 0:03:01.1]} 5. Nc3 {[%clk
0:02:59.7]} 5... Bg7 {[%clk 0:03:01.2]} 6. Be3 {[%clk 0:03:00.3]} 6... Nf6
{[%clk 0:03:01.4]} 7. Bc4 {[%clk 0:03:00.2]} 7... O-O {[%clk 0:03:01.7]} 8. Bb3
{[%clk 0:03:00.3]} 8... d6 {[%clk 0:03:02.4]} 9. f3 {[%clk 0:02:58.5]} 9... Nxd4
{[%clk 0:03:02.7]} 10. Bxd4 {[%clk 0:02:56.2]} 10... Qa5 {[%clk 0:03:03.6]} 11.
Qd2 {[%clk 0:02:56]} 11... Be6 {[%clk 0:03:02.6]} 12. O-O-O {[%clk 0:02:52.3]}
12... b5 {[%clk 0:03:02]} 13. Kb1 {[%clk 0:02:50.5]} 13... b4 {[%clk 0:03:01.9]}
14. Nd5 {[%clk 0:02:49.2]} 14... Bxd5 {[%clk 0:03:01.6]} 15. exd5 {[%clk
0:02:48.7]} 15... Qb5 {[%clk 0:03:01.8]} 16. Rhe1 {[%clk 0:02:32.4]} 16... a5
{[%clk 0:03:01.2]} 17. Qe2 {[%clk 0:02:20.5]} 17... Qxe2 {[%clk 0:03:00.6]} 18.
Rxe2 {[%clk 0:02:21.4]} 18... a4 {[%clk 0:03:00.7]} 19. Bc4 {[%clk 0:02:20.2]}
19... Rfc8 {[%clk 0:03:00.7]} 20. b3 {[%clk 0:02:19.9]} 20... Rc7 {[%clk
0:02:52.7]} 21. Rde1 {[%clk 0:02:18.5]} 21... Kf8 {[%clk 0:02:49.2]} 22. Bb2
{[%clk 0:02:11.7]} 22... Ne8 {[%clk 0:02:43.9]} 23. Bb5 {[%clk 0:02:02.4]} 23...
Bxb2 {[%clk 0:02:35.1]} 24. Kxb2 {[%clk 0:02:03.3]} 24... Nf6 {[%clk 0:02:11]}
25. Bc6 {[%clk 0:01:55.5]} 25... Ra5 {[%clk 0:02:10.5]} 26. Rd2 {[%clk
0:01:45.4]} 26... a3+ {[%clk 0:01:48.4]} 27. Kc1 {[%clk 0:01:42.5]} 27... e5
{[%clk 0:01:49.3]} 28. Re3 {[%clk 0:01:31.3]} 28... Rc5 {[%clk 0:01:48]} 29. Kd1
{[%clk 0:01:10.9]} 29... Ra7 {[%clk 0:01:36]} 30. g4 {[%clk 0:01:05.5]} 30...
Raa5 {[%clk 0:01:35.3]} 31. Red3 {[%clk 0:01:04.3]} 31... e4 {[%clk 0:01:25.9]}
32. Rd4 {[%clk 0:00:59.5]} 32... exf3 {[%clk 0:01:21.2]} 33. g5 {[%clk
0:00:58.7]} 33... Nh5 {[%clk 0:01:03.4]} 34. Rxb4 {[%clk 0:00:57.6]} 34... Ng7
{[%clk 0:00:38.7]} 35. Rb8+ {[%clk 0:00:57.3]} 35... Ke7 {[%clk 0:00:38.8]} 36.
b4 {[%clk 0:00:57.3]} 36... Rxc6 {[%clk 0:00:32]} 37. dxc6 {[%clk 0:00:58.2]}
37... Ra7 {[%clk 0:00:26.8]} 38. Rb7+ {[%clk 0:00:57.7]} 38... Rxb7 {[%clk
0:00:27.2]} 39. cxb7 {[%clk 0:00:58.6]} 1-0